Cogmind - Beta 10.2 *** ADVENTURER MODE // 2020.11.25 @ 22:09:27 // Halloween2020/ForbiddenLore Player: Luigi Panache Result: Destroyed by G-34 Mercenary with Small Laser Performance ------------- Evolutions (1) 500 Regions Visited (2) 400 Robots Destroyed (7) 35 Value Destroyed (53) 53 Prototype IDs (0) 0 Alien Tech Used (0) 0 Bonus (0) 0 TOTAL SCORE: 988 Bonus ------- None Cogmind --------- Core Integrity 0/400 Matter 150/300 Energy 100/100 System Corruption 0% Temperature Cool (12) Movement Core (50) Location -9/Materials Parts ------- > --- POWER (1) -------- (None) > --- PROPULSION (2) --- (None) > --- UTILITY (2) ------ (None) > --- WEAPON (4) ------- (None) > --- INVENTORY (4) ---- (None) Peak State ------------ > --- POWER ------------ (None) > --- PROPULSION ------- Advanced Treads Advanced Treads > --- UTILITY ---------- (None) > --- WEAPON ----------- (None) > --- INVENTORY -------- (None) [Rating: 6] Favorites ----------- Power None Propulsion Flight Unit Treads Light Treads Hover Unit Hover Unit Flight Unit Flight Unit Utility None Weapon Grenade Launcher Launcher Grenade Launcher Build | -11 -10 -9 ------- Run | Scr Mat Mat Slots Evolved 2 | . . 2 Power . | . . . Propulsion . | . . . Utility . | . . . Weapon 2 | . . 2 Parts Attached 9 | 2 5 2 Power . | . . . Engine . | . . . Core . | . . . Reactor . | . . . Propulsion 7 | 2 3 2 Treads 4 | 2 . 2 Leg . | . . . Wheel . | . . . Hover 1 | . 1 . Flight 2 | . 2 . Utility . | . . . Device . | . . . Storage . | . . . Processor . | . . . Hackware . | . . . Protection . | . . . Artifact . | . . . Weapon 2 | . 2 . Energy Gun . | . . . Energy Cannon . | . . . Ballistic Gun . | . . . Ballistic Cannon . | . . . Launcher 2 | . 2 . Special Weapon . | . . . Impact Weapon . | . . . Slashing Weapon . | . . . Piercing Weapon . | . . . Special Melee Weapon . | . . . Unidentified Prototypes . | . . . Parts Lost 4 | . 2 2 Power . | . . . Propulsion 3 | . 1 2 Utility . | . . . Weapon 1 | . 1 . Highest Loss Streak 2 | . 2 2 Average Slot Usage (%) 27 | . 31 13 Treads 6 | . 5 9 Hover 1 | . . 3 Flight 11 | . 15 . Launcher 7 | . 10 . Naked Turns 29 | . 2 27 Heaviest Build 3 | . 3 . Greatest Support 44 | 40 40 44 Greatest Overweight (x) . | . . . Average Overweight (x) . | . . . Largest Inventory Capacity 4 | 4 4 4 Average Capacity 4 | 4 4 4 Most Carried . | . . . Average Carried . | . . . Final Capacity 4 | 4 4 4 Final Carried . | . . . Class Distribution -------------------- 100% | Mutant Dominant Class ---------------- Mutant | -10/Materials Mutant | -9/Materials Resources | -11 -10 -9 ----------- Run | Scr Mat Mat Matter Collected 192 | 126 49 17 Remotely . | . . . Salvage Created 50 | . 50 . Parts 11 | . 11 . Haulers Intercepted . | . . . Recyclers Shooed . | . . . Parts Field Recycled . | . . . Retrieved Matter . | . . . Parts Self-Destructed . | . . . Prevented . | . . . Kills | -11 -10 -9 ------- Run | Scr Mat Mat Combat Hostiles Destroyed 3 | . 3 . AOE 3 | . 3 . Classes Destroyed 4 | . 4 . Worker 2 | . 2 . Builder 1 | . 1 . Watcher 1 | . 1 . Swarmer 3 | . 3 . Best Kill Streak 3 | . 3 . Combat Bots Only 2 | . 2 . Max Kills in Single Turn 3 | . 3 . Gunslinging . | . . . Exploded 2 | . 2 . Melee . | . . . Uniques/NPCs Destroyed . | . . . Combat | -11 -10 -9 -------- Run | Scr Mat Mat Damage Taken 873 | . 118 755 Core 443 | . 37 406 Absorbed by Shields . | . . . Core Remaining (%) 92 | 100 85 . Volleys Fired 5 | . 5 . Largest 1 | . 1 . Hottest 30 | . 30 . Shots Fired 5 | . 5 . Gun . | . . . Cannon . | . . . Launcher 5 | . 5 . Special . | . . . Kinetic . | . . . Thermal . | . . . Explosive 5 | . 5 . Electromagnetic . | . . . Robot Hit Streak 2 | . 2 . Robot Miss Streak 1 | . 1 . Penetration Max . | . . . Secondary Targets . | . . . Shots Hit Robots 3 | . 3 . Core Hits 11 | . 11 . Critical Hits . | . . . Critical Kills . | . . . Critical Parts Destroyed . | . . . Melee Attacks . | . . . Impact . | . . . Slashing . | . . . Piercing . | . . . Sneak Attacks . | . . . Combat Hostiles . | . . . Follow-up Attacks . | . . . Damage Inflicted 328 | . 328 . Guns . | . . . Cannons . | . . . Explosions 328 | . 328 . Melee . | . . . Ramming . | . . . Kinetic . | . . . Thermal . | . . . Explosive 328 | . 328 . Electromagnetic . | . . . Impact . | . . . Slashing . | . . . Piercing . | . . . Highest Corruption 3 | . 3 . Average Corruption 2 | . 2 . Corruption Purged . | . . . Effects 5 | . 5 . Matter Fused 3 | . 3 . Energy Discharges 1 | . 1 . Data Loss (minor) 1 | . 1 . Overload Shots . | . . . Overflow Damage 32 | . 32 . Projectiles . | . . . Explosions 32 | . 32 . Melee . | . . . Knockbacks . | . . . Impact . | . . . Kinetic . | . . . Secondary . | . . . Self-Inflicted Damage 64 | . 64 . Shots 4 | . 4 . Rammed . | . . . Targets Rammed . | . . . Kicked . | . . . Crushed . | . . . Highest Temperature . | . . . Average Temperature . | . . . Received Heat Transfer 546 | . . 546 Siege Activations . | . . . Robots Corrupted . | . . . Combat Hostiles . | . . . Parts Fried . | . . . Impact Corruptions . | . . . Robots Melted . | . . . Combat Hostiles . | . . . Parts Melted . | . . . Heat Transferred . | . . . Parts Sabotaged . | . . . Parts Stolen . | . . . Parts Stripped . | . . . Power Chain Reactions . | . . . Missiles Intercepted . | . . . Alert | -11 -10 -9 ------- Run | Scr Mat Mat Peak Influence 107 | . 107 75 Initial . | . . . Average 48 | . 54 45 Maximum Alert Level . | . . . Low Security (%) 100 | 100 100 100 Level 1 . | . . . Level 2 . | . . . Level 3 . | . . . Level 4 . | . . . Level 5 . | . . . High Security . | . . . Max Security . | . . . Squads Dispatched 3 | . . 3 Investigation . | . . . Extermination . | . . . Reinforcement 3 | . . 3 Assault . | . . . Garrison . | . . . Intercept . | . . . Construction Impeded . | . . . Haulers Reinforced . | . . . Stealth | -11 -10 -9 --------- Run | Scr Mat Mat Distress Signals 2 | . . 2 Communications Jammed . | . . . Distress Signals . | . . . Times Spotted 11 | . 5 6 Peak Tracking Total 5 | . 3 5 Tactical Retreats . | . . . Traps | -11 -10 -9 ------- Run | Scr Mat Mat Traps Triggered 7 | . 6 1 Indirectly . | . . . Trap Hack Attempts . | . . . Triggered . | . . . Disarmed . | . . . Reprogrammed . | . . . Reused . | . . . Traps Extracted . | . . . Installed . | . . . Triggered . | . . . Machines | -11 -10 -9 ---------- Run | Scr Mat Mat Machines Disabled . | . . . Max in Single Turn . | . . . Machines Sabotaged . | . . . Garrisons Compromised . | . . . Overloaded Fab Kills . | . . . Fab Network Shutdowns . | . . . Hacking | -11 -10 -9 --------- Run | Scr Mat Mat Machines Accessed . | . . . Terminals . | . . . Fabricators . | . . . Repair Stations . | . . . Recycling Units . | . . . Scanalyzers . | . . . Garrison Access . | . . . Total Hacks . | . . . Successful . | . . . Failed . | . . . Catastrophic . | . . . Database Lockouts . | . . . Manual . | . . . Terminals . | . . . Fabricators . | . . . Repair Stations . | . . . Recycling Units . | . . . Scanalyzers . | . . . Garrison Access . | . . . Terminal Hacks . | . . . Fabricator Hacks . | . . . Repair Station Hacks . | . . . Recycling Unit Hacks . | . . . Scanalyzer . | . . . Garrison Access Hacks . | . . . Unauthorized Hacks . | . . . Terminals . | . . . Fabricators . | . . . Repair Stations . | . . . Recycling Units . | . . . Scanalyzers . | . . . Garrison Access . | . . . Data Cores Recovered . | . . . Used . | . . . Hacking Detections . | . . . Full Trace Events . | . . . Feedback Events . | . . . Feedback Blocked . | . . . Robot Schematics Acquired . | . . . Robots Built . | . . . Matter . | . . . Time . | . . . Total Robot Build Rating . | . . . Part Schematics Acquired . | . . . Parts Built . | . . . Matter . | . . . Time . | . . . Total Part Build Rating . | . . . Parts Repaired . | . . . Time . | . . . Parts Recycled . | . . . Recycled Matter . | . . . Retrieved Matter . | . . . Retrieved Components . | . . . Parts Scanalyzed . | . . . Part Schematics Acquired . | . . . Parts Damaged . | . . . Bothacking | -11 -10 -9 ------------ Run | Scr Mat Mat Used RIF Installer . | . . . Robots Hacked . | . . . Non-combat . | . . . Combat . | . . . Robot Hacks Applied . | . . . Relay Couplers Released . | . . . Robots Rewired . | . . . Allies Hacked . | . . . Hacks Repelled . | . . . Allies | -11 -10 -9 -------- Run | Scr Mat Mat Total Allies . | . . . Largest Group . | . . . Highest-Rated Group . | . . . Highest-Rated Ally . | . . . Total Orders . | . . . Ally Attacks . | . . . Total Damage . | . . . Kills . | . . . Allies Corrupted . | . . . Allies Melted . | . . . Intel | -11 -10 -9 ------- Run | Scr Mat Mat Robot Analysis Total . | . . . Derelict Logs Recovered . | . . . Drone Launches . | . . . Drone Recoveries . | . . . Exploration | -11 -10 -9 ------------- Run | Scr Mat Mat Turns Passed 680 | 47 472 161 Spaces Moved 834 | 46 647 141 Core 174 | 26 121 27 Treads 108 | 20 56 32 Legs . | . . . Wheels . | . . . Hover 109 | . 27 82 Flight 443 | . 443 . Fastest Speed 37 | 50 37 50 Average Speed 58 | 97 51 77 Slowest Speed 160 | 160 160 145 Overloaded Moves . | . . . Propulsion Burnouts . | . . . Robots Hopped 2 | . 2 . Cave-ins Triggered . | . . . Exploration Rate (%) 21 | 4 48 13 Regions Visited 2 Branch Regions . Pre-discovered Areas . | . . . Known Exits Taken . | . . . Unknown Exits Taken 2 | 1 1 . Scrap Searched . | . . . Spaces Dug . | . . . Terrain Destroyed 37 | . 37 . Melee . | . . . Projectile . | . . . AOE 37 | . 37 . Terrain Rammed . | . . . Walls Destroyed . | . . . Machines Disabled . | . . . Actions | -11 -10 -9 --------- Run | Scr Mat Mat Total 1015 | 47 776 192 Wait 170 | . 121 49 Move 828 | 45 642 141 Hop 2 | . 2 . Pick Up . | . . . Fast Attach 9 | 2 5 2 Attach . | . . . Detach . | . . . Swap . | . . . Drop 1 | . 1 . Fire 5 | . 5 . Melee . | . . . Ram . | . . . Kick . | . . . Crush . | . . . Escape Stasis . | . . . Rewire . | . . . Trap . | . . . Miscellaneous . | . . . Route ------- -11/Scrapyard -10/Materials (discovered 2 exits: [*Mat x2]) -9/Materials History --------- Turn | Location | Event 4 | -11/Scrapyard | Discovered new exit (range 12) 48 | -11/Scrapyard | Entered Materials 151 | -10/Materials | Discovered new exit (range 4) 287 | -10/Materials | Discovered new exit (range 16) 315 | -10/Materials | Build established: Mutant 520 | -10/Materials | Entered another Materials area 520 | -9/Materials | Evolved 2 slots: Weapon x2 668 | -9/Materials | Core integrity fell below 50% 676 | -9/Materials | Core integrity fell below 20% 681 | -9/Materials | Destroyed by G-34 Mercenary with Small Laser Last Messages --------------- 00579_ Massive razor-sharp blades shoot up from within the floor. 00579_ Hover Unit severed. 00580_ U-05 Engineer lays Concrete. 00582_ R-06 Scavenger collects Hover Unit. 00583_ W-16 Scout distress signal alerts nearby ally. 00584_ ALERT: Hostiles spotted, dispatching reinforcements to Terminal M012. 00586_ Acquired Adv. Treads. 00589_ ALERT: Hostiles spotted, dispatching reinforcements to Terminal M010. 00596_ K-01 Serf collects debris. 00598_ W-16 Scout distress signal alerts nearby ally. 00625_ K-01 Serf cleans the Integration Channel. 00646_ K-01 Serf destroyed. 00648_ Adv. Treads destroyed. 00648_ Acquired 17 matter. 00651_ K-01 Serf cleans the Integration Channel. 00657_ K-01 Serf collects debris. 00661_ Adv. Treads destroyed. 00666_ K-01 Serf cleans the Integration Channel. Map ----- +----------------------------------------------------+ | ?????????????????????????????????????????????????? | | ?????????????????????????????????????????????????? | | ?????????????????????????????????????????????????? | | ?????????????????????????????????????????????????? | | ?????????????????????????????????????????????????? | | ?????????????????????????????????????????????????? | | ?????????????????????????????????????????????????? | | ?????????????????????????????????????????????????? | | ?????????????????????????????????????????????????? | | ?????????????????????????????????????????????????? | | ?????????????????????????????????????????????????? | | ?????????????????????????????????????????????????? | | ?????????????????????????????????????????????????? | | ?????????????????????????????????????????????????? | | ?????????????????????????????????????????????????? | | ?????????????????????????????????????????????????? | | ??????????????#??????????????????????????????????? | | ?????????????? ?????????????????????????????????? | | ??????????????? ????????????????????????????????? | | ???????????????? ???##############??????????????? | | ?????????????????# ??# ###???????????? | | ?????????????????# ?# """"" + ???????????? | | ?????????????????# # """"""""" #?????????????? | | ?????????????????# + """ """ #?????????????? | | ?????????????????????# kg = g #?????????????? | | ?????????????????????# g@= k #?????????????? | | ?????????????????????####g##########?????????????? | | ????????????????????????# #??????????????????????? | | ????????????????????????# #??????????????????????? | | ????????????????????????# #??????????????????????? | | ????????????????#???????# #?#####????????????????? | | ????????????????? ??????# #?# !!#????????????????? | | ?????????????????# ?????# #?# !!#????????????????? | | ?????????????????# ????# #?# //#????????????????? | | ?????????????????# ???# #?# //#????????????????? | | ????????????###### #### ### =#????????????????? | | ?????????? =#????????????????? | | ?????????????????# #####????????????????? | | ?????????????????# #????????????????????? | | ?????????????????#######+####????????????????????? | | ??????????????????#! ! #????????????????????? | | ??????????????????# #????????????????????? | | ??????????????????# #????????????????????? | | ??????????????????# """ #???????###+###??????? | | ??????????????????# """ #???????# ######## | | ??????????????????# """ #???????# | | ??????????????????# "T" #???????# | | ??????????????????# """ #???????# | | ??????????????????######+####?####### ###+### | | ???????????????????????# #???##!!!!### ##? ?# | +----------------------------------------------------+ Best States ------------- Heat Dissipation 28 Energy Generation 5 Energy Capacity 100 Matter Stores 216 Matter Capacity 300 Sight Range 16 Terrain Scan Density 10 Resistance: KI 20 Resistance: TH 20 Resistance: EX 20 Resistance: EM 20 Resistance: I 20 Resistance: S 20 Resistance: P 20 Evasion (%) 62 Recoil Reduction 2 Offensive Hacking 10 Item Schematics ----------------- None Robot Schematics ------------------ None Fabricated ------------ Nothing Alien Tech Used ----------------- None Achievements -------------- None Challenges ------------ None Game ------ Seed PhasingHeatFlakker Manual? 0 Play Time 00:15:47 Cumulative 125.3 hours Start 2020.11.25 @ 17:09:25 End 2020.11.25 @ 22:09:27 Sessions 9 Manual Loads 0 Difficulty Adventurer Special Mode Halloween2020/ForbiddenLore Game No. 91 Rogue 31 Adventurer 22 Explorer 38 Win Type - Total 6 Types 6/0/0/0/0/0/0/0/0 Lore% 47 Gallery% 70 Achievement% 57 Wizard Run 0 Options --------- ASCII 0 Keyboard 0 Movement Mouse Keybinds 0 Fullscreen 2 Font 18/Terminus Map View 76x50 Tactical HUD 1 Map Filters NONE Filters NONE Steam 1 RUN: 55dca720-e873-4124-8723-71a2b17a23f2